fUSD/lending_fUSD_20250820
["ID","MTS","AMOUNT","RATE_DAILY","PERIOD"]
[380398257,1755729042293,-151.0,0.0001995,2]
[380398258,1755729042302,-151.0,0.0001995,2]
[380398259,1755729042312,-332.01336,0.0001995,2]
[380398260,1755729042321,-276.684377,0.0001995,2]
[380398261,1755729042331,-332.01336,0.0001995,2]
[380398262,1755729042340,-332.01336,0.0001995,2]
[380398263,1755729042350,-151.0,0.0001995,2]
[380398264,1755729042360,-151.0,0.0001995,2]
[380398265,1755729042370,-151.0,0.0001995,2]
[380398266,1755729042379,-332.01336,0.0001995,2]
[380398267,1755729042389,-177.013246,0.0001995,2]
[380398268,1755729042398,-177.013246,0.0001995,2]
[380398269,1755729042408,-177.013246,0.0001995,2]
[380398270,1755729042418,-177.013246,0.0001995,2]
[380398271,1755729042427,-151.0,0.0001995,2]
[380398272,1755729042436,-151.0,0.0001995,2]
[380398273,1755729042446,-151.0,0.0001995,2]
[380398274,1755729042457,-1308.40617,0.0001995,2]
[380398275,1755729042466,-187.216216,0.0001995,2]
[380398276,1755729042476,-247.85332,0.0001995,2]
[380398277,1755729042486,-1308.40617,0.0001995,2]
[380398278,1755729042496,-386.51106,0.0001995,2]
[380398279,1755729042505,-1308.40617,0.0001995,2]
[380398280,1755729042515,-386.51106,0.0001995,2]
[380398281,1755729042524,-1308.40617,0.0001995,2]
[380398282,1755729042533,-386.51106,0.0001995,2]
[380398283,1755729042542,-386.51106,0.0001995,2]
[380398284,1755729042552,-151.0,0.0001995,2]
[380398285,1755729042561,-151.0,0.0001995,2]
[380398286,1755729042570,-151.0,0.0001995,2]
[380398287,1755729042579,-235.821144,0.0001995,2]
[380398288,1755729042588,-151.0,0.0001995,2]
[380398289,1755729042597,-151.0,0.0001995,2]
[380398290,1755729042606,-151.0,0.0001995,2]
[380398291,1755729042615,-151.0,0.0001995,2]
[380398292,1755729042625,-151.0,0.0001995,2]
[380398293,1755729042634,-151.0,0.0001995,2]
[380398294,1755729042644,-151.0,0.0001995,2]
[380398295,1755729042653,-151.0,0.0001995,2]
[380398296,1755729042662,-151.0,0.0001995,2]
[380398297,1755729042671,-240.864153,0.0001995,2]
[380398298,1755729042680,-306.52494,0.0001995,2]
[380398299,1755729042690,-151.0,0.0001995,2]
[380398300,1755729042699,-306.52494,0.0001995,2]
[380398301,1755729042708,-151.0,0.0001995,2]
[380398302,1755729042718,-151.0,0.0001995,2]
[380398303,1755729042727,-306.52494,0.0001995,2]
[380398304,1755729042736,-151.0,0.0001995,2]
[380398305,1755729042746,-226.341115,0.0001995,2]
[380398306,1755729042755,-306.52494,0.0001995,2]
[380398307,1755729042764,-226.341115,0.0001995,2]
[380398308,1755729042773,-226.341115,0.0001995,2]
[380398309,1755729042784,-350.710148,0.0001995,2]
[380398310,1755729042793,-226.341115,0.0001995,2]
[380398311,1755729042802,-350.710148,0.0001995,2]
[380398312,1755729042811,-151.0,0.0001995,2]
[380398313,1755729042822,-350.710148,0.0001995,2]
[380398314,1755729042832,-350.710148,0.0001995,2]
[380398315,1755729042841,-151.0,0.0001995,2]
[380398316,1755729042851,-242.164717,0.0001995,2]
[380398317,1755729042861,-242.164717,0.0001995,2]
[380398318,1755729042870,-242.164717,0.0001995,2]
[380398319,1755729042880,-242.164717,0.0001995,2]
[380398320,1755729042889,-244.3268,0.0001995,2]
[380398321,1755729042899,-244.3268,0.0001995,2]
[380398322,1755729042909,-244.3268,0.0001995,2]
[380398323,1755729042918,-4940.116629,0.0001995,2]
[380398324,1755729042928,-151.0,0.0001995,2]
[380398325,1755729042939,-244.3268,0.0001995,2]
[380398326,1755729042949,-151.0,0.0001995,2]
[380398327,1755729042958,-4940.116629,0.0001995,2]
[380398328,1755729042967,-151.0,0.0001995,2]
[380398329,1755729042977,-151.0,0.0001995,2]
[380398330,1755729042986,-151.0,0.0001995,2]
[380398331,1755729042995,-245.615268,0.0001995,2]
[380398332,1755729043004,-4940.116629,0.0001995,2]
[380398334,1755729043014,-151.0,0.0001995,2]
[380398335,1755729043023,-4940.116629,0.0001995,2]
[380398336,1755729043033,-245.615268,0.0001995,2]
[380398337,1755729043042,-270.708129,0.0001995,2]
[380398338,1755729043051,-245.615268,0.0001995,2]
[380398339,1755729043061,-245.615268,0.0001995,2]
[380398340,1755729043070,-151.0,0.0001995,2]
[380398341,1755729043079,-151.0,0.0001995,2]
[380398342,1755729043088,-514.0,0.0001997,2]
[380398343,1755729043097,-219.07280249,0.00019973,2]
[380398344,1755729043107,-500.0,0.00019973,2]
[380398345,1755729043116,-500.0,0.00019973,2]
[380398346,1755729043125,-500.0,0.00019973,2]
[380398347,1755729043137,-500.0,0.00019973,2]
[380398348,1755729043148,-77001.60776145,0.00019985,2]
[380398349,1755729043157,-45920.00691459,0.0002,2]
[380398350,1755729043166,-93249.8564611,0.0002,2]
[380398351,1755729043176,-1503.15759871,0.0002,2]
[380398352,1755729043186,-6004.89741741,0.0002,2]
[380398353,1755729043196,-1433.46711556,0.0002,5]
[380398354,1755729043205,-25092.10254918,0.0002,2]
[380398355,1755729043216,-408225.56827928,0.0002,5]
[380398356,1755729043226,-200.0,0.0002,2]
[380398357,1755729043235,-8300.0,0.0002,4]
[380398358,1755729043245,-5734.95012876,0.0002,2]
[380398359,1755729043254,-1269.37703327,0.0002,2]
[380398360,1755729043263,-7231.13439201,0.0002,2]
[380398361,1755729043273,-2024.83254549,0.0002,3]
[380398362,1755729043282,-2866.55827322,0.0002,7]
[380398363,1755729043291,-516.82664838,0.0002,7]
[380398364,1755729043301,-150.0,0.0002,2]
[380398365,1755729043311,-1024.43858187,0.0002,2]
[380398366,1755729043320,-58969.09996149,0.0002,2]
[380398367,1755729043329,-635.12063267,0.0002,2]
[380398368,1755729043339,-4000.0,0.0002,4]
[380398369,1755729043348,-1500.0,0.00020068,2]
[380398370,1755729043357,-1500.0,0.00020068,2]
[380398371,1755729043367,-1500.0,0.00020068,2]
[380398372,1755729043376,-1500.0,0.00020068,2]
[380398373,1755729043386,-1500.0,0.00020068,2]
[380398374,1755729043395,-1500.0,0.00020068,2]
[380398375,1755729043404,-453.62,0.00020187,2]
[380398376,1755729043413,-1000.0,0.00020521,2]
[380398377,1755729043423,-1000.0,0.00020521,2]
[380398378,1755729043432,-1000.0,0.00020521,2]
[380398379,1755729043441,-1000.0,0.00020521,2]
[380398380,1755729043451,-150.0,0.00020548,2]
[380398381,1755729043460,-136264.13,0.000206,2]
[380398382,1755729043470,-2000.0,0.00020616,2]
[380398383,1755729043479,-2000.0,0.00020616,2]
[380398384,1755729043488,-1216.15902767,0.00020616,2]
[380398385,1755729043497,-1849.0152414,0.00020616,2]
[380398386,1755729043506,-2000.0,0.00020616,2]
[380398387,1755729043516,-2000.0,0.00020616,2]
[380398388,1755729043526,-7502.95,0.000209,2]
[380398389,1755729043536,-250.0,0.00020947,2]
[380398390,1755729043545,-4846.69,0.00020947,2]
[380398391,1755729043554,-2000.0,0.00021,2]
[380398392,1755729043564,-2000.0,0.00021,2]
[380398393,1755729043574,-2000.0,0.00021,2]
[380398394,1755729043583,-117607.20073795,0.00021,2]
[380398395,1755729043592,-2000.0,0.00021,2]
[380398396,1755729043602,-2000.0,0.00021,2]
[380398397,1755729043611,-2000.0,0.00021,2]
[380398398,1755729043621,-2000.0,0.00021,2]
[380398399,1755729043630,-2000.0,0.00021,2]
[380398400,1755729043640,-1500.0,0.00021068,2]
[380398401,1755729043649,-1500.0,0.00021068,2]
[380398402,1755729043659,-167.22463356,0.00021068,2]
[380398403,1755729043668,-1500.0,0.00021068,2]
[380398404,1755729043678,-151.0,0.00021096,2]
[380398406,1755729043687,-2500.0,0.00021164,2]
[380398407,1755729043697,-2500.0,0.00021164,2]
[380398408,1755729043707,-1742.88028938,0.00021164,2]
[380398409,1755729043716,-2500.0,0.00021164,2]
[380398410,1755729043726,-2000.0,0.00021616,2]
[380398411,1755729043735,-2000.0,0.00021616,2]
[380398412,1755729043745,-1648.81340019,0.00021616,2]
[380398413,1755729043755,-152.0,0.00021644,2]
[380398414,1755729043765,-27982.82,0.000217,2]
[380398415,1755729043775,-154.68601917,0.00021712,2]
[380398416,1755729043785,-3000.0,0.00021712,2]
[380398417,1755729043795,-27678.7699167,0.000219,2]
[380398418,1755729043804,-1678.56402363,0.0002192,4]
[380398419,1755729043814,-1678.56402363,0.0002192,4]
[380398420,1755729043823,-1678.56402363,0.0002192,4]
[380398421,1755729043832,-1678.56402363,0.0002192,4]
[380398423,1755729043842,-1678.56402363,0.0002192,4]
[380398424,1755729043851,-1678.56402363,0.0002192,4]
[380398425,1755729043861,-1678.56402363,0.0002192,4]
[380398426,1755729043871,-1678.56402363,0.0002192,4]
[380398427,1755729043880,-1678.56402363,0.0002192,4]
[380398428,1755729043890,-1678.56402363,0.0002192,4]
[380398429,1755729043899,-1678.56402363,0.0002192,4]
[380398430,1755729043909,-1678.56402363,0.0002192,4]
[380398431,1755729043918,-1678.56402363,0.0002192,4]
[380398432,1755729043928,-1678.56402363,0.0002192,4]
[380398433,1755729043938,-1678.56402363,0.0002192,4]
[380398434,1755729043947,-1678.56402363,0.0002192,4]
[380398435,1755729043956,-1678.56402363,0.0002192,4]
[380398436,1755729043966,-1678.56402363,0.0002192,4]
[380398437,1755729043976,-1678.56402363,0.0002192,4]
[380398438,1755729043986,-1678.56,0.0002192,4]
[380398439,1755729043996,-3916.64938846,0.0002192,4]
[380398440,1755729044006,-3916.64938846,0.0002192,4]
[380398441,1755729044015,-3916.64938846,0.0002192,4]
[380398442,1755729044025,-3916.64938846,0.0002192,4]
[380398443,1755729044034,-3916.64938846,0.0002192,4]
[380398444,1755729044043,-3916.64938846,0.0002192,4]
[380398445,1755729044052,-3916.64938846,0.0002192,4]
[380398446,1755729044062,-3916.64938846,0.0002192,4]
[380398447,1755729044072,-3916.64938846,0.0002192,4]
[380398448,1755729044081,-3916.64938846,0.0002192,4]
[380398449,1755729044090,-3916.64938846,0.0002192,4]
[380398450,1755729044100,-3916.64938846,0.0002192,4]
[380398451,1755729044111,-3916.64938846,0.0002192,4]
[380398452,1755729044120,-3916.64938846,0.0002192,4]
[380398453,1755729044130,-3916.64938846,0.0002192,4]
[380398454,1755729044143,-3916.64938846,0.0002192,4]
[380398455,1755729044153,-3916.64938846,0.0002192,4]
[380398456,1755729044162,-3916.64938846,0.0002192,4]
[380398457,1755729044172,-3916.64938846,0.0002192,4]
[380398458,1755729044183,-3916.64,0.0002192,4]
[380398459,1755729044192,-1084.18504266,0.0002192,4]
[380398460,1755729044202,-1084.18504266,0.0002192,4]
[380398461,1755729044212,-1084.18504266,0.0002192,4]
[380398462,1755729044223,-1084.18504266,0.0002192,4]
[380398463,1755729044233,-1084.18504266,0.0002192,4]
[380398464,1755729044244,-1084.18504266,0.0002192,4]
[380398465,1755729044253,-1084.18504266,0.0002192,4]
[380398466,1755729044263,-1084.18504266,0.0002192,4]
[380398467,1755729044272,-1084.18504266,0.0002192,4]
[380398468,1755729044282,-1084.18504266,0.0002192,4]
[380398469,1755729044291,-1084.18504266,0.0002192,4]
[380398470,1755729044301,-1084.18504266,0.0002192,4]
[380398471,1755729044310,-1084.18504266,0.0002192,4]
[380398472,1755729044320,-1084.18504266,0.0002192,4]
[380398473,1755729044329,-1084.18504266,0.0002192,4]
[380398474,1755729044339,-1084.18504266,0.0002192,4]
[380398475,1755729044348,-1084.18504266,0.0002192,4]
[380398476,1755729044358,-1084.18504266,0.0002192,4]
[380398477,1755729044367,-1084.18504266,0.0002192,4]
[380398478,1755729044376,-1084.18,0.0002192,4]
[380398479,1755729044386,-2529.76509955,0.0002192,4]
[380398480,1755729044396,-2529.76509955,0.0002192,4]
[380398481,1755729044405,-2529.76509955,0.0002192,4]
[380398482,1755729044414,-2529.76509955,0.0002192,4]
[380398483,1755729044424,-2529.76509955,0.0002192,4]
[380398484,1755729044433,-2529.76509955,0.0002192,4]
[380398485,1755729044443,-2529.76509955,0.0002192,4]
[380398486,1755729044452,-2529.76509955,0.0002192,4]
[380398487,1755729044462,-2529.76509955,0.0002192,4]
[380398488,1755729044471,-2529.76509955,0.0002192,4]
[380398489,1755729044480,-2529.76509955,0.0002192,4]
[380398490,1755729044489,-2529.76509955,0.0002192,4]
[380398491,1755729044499,-2529.76509955,0.0002192,4]
[380398492,1755729044508,-2529.76509955,0.0002192,4]
[380398493,1755729044517,-2529.76509955,0.0002192,4]
[380398494,1755729044527,-2529.76509955,0.0002192,4]
[380398495,1755729044536,-2529.76509955,0.0002192,4]
[380398496,1755729044545,-2529.76509955,0.0002192,4]
[380398497,1755729044555,-2529.76509955,0.0002192,4]
[380398498,1755729044564,-2529.76,0.0002192,4]
[380398499,1755729044574,-162.4037323,0.0002192,4]
[380398500,1755729044583,-162.4037323,0.0002192,4]
[380398501,1755729044592,-162.4037323,0.0002192,4]
[380398502,1755729044602,-162.4037323,0.0002192,4]
[380398503,1755729044612,-162.4037323,0.0002192,4]
[380398504,1755729044621,-162.4037323,0.0002192,4]
[380398505,1755729044631,-162.4037323,0.0002192,4]
[380398506,1755729044640,-162.4037323,0.0002192,4]
[380398507,1755729044649,-162.4037323,0.0002192,4]
[380398508,1755729044661,-162.4037323,0.0002192,4]
[380398509,1755729044670,-162.4037323,0.0002192,4]
[380398510,1755729044679,-162.4,0.0002192,4]
[380398511,1755729044688,-227.36522522,0.0002192,4]
[380398512,1755729044698,-227.36522522,0.0002192,4]
[380398513,1755729044707,-227.36522522,0.0002192,4]
[380398514,1755729044717,-227.36522522,0.0002192,4]
[380398515,1755729044726,-227.36522522,0.0002192,4]
[380398516,1755729044736,-227.36522522,0.0002192,4]
[380398517,1755729044746,-227.36522522,0.0002192,4]
[380398518,1755729044755,-227.36522522,0.0002192,4]
[380398519,1755729044765,-227.36522522,0.0002192,4]
[380398520,1755729044774,-227.36522522,0.0002192,4]
[380398521,1755729044783,-227.36522522,0.0002192,4]
[380398522,1755729044792,-227.36522522,0.0002192,4]
[380398523,1755729044802,-227.36522522,0.0002192,4]
[380398524,1755729044811,-227.36522522,0.0002192,4]
[380398525,1755729044820,-227.36522522,0.0002192,4]
[380398526,1755729044829,-227.36522522,0.0002192,4]
[380398527,1755729044838,-227.36522522,0.0002192,4]
[380398528,1755729044848,-227.36522522,0.0002192,4]
[380398529,1755729044858,-227.36522522,0.0002192,4]
[380398530,1755729044867,-227.36,0.0002192,4]
[380398531,1755729044877,-600.0,0.0002197,2]
[380398532,1755729044886,-15642.50085419,0.0002199,2]
[380398533,1755729044896,-293.84926223,0.00022,2]
[380398534,1755729044905,-1844752.31332732,0.00022,2]
[380398536,1755729046524,-199.687516,0.00016,2]
[380398537,1755729046534,-100.60639533,0.0001995,2]
[380398538,1755729046545,-99.08112067,0.0001995,2]
[380398539,1755729046555,-158.31427944,0.00022,2]
[380398540,1755729046567,-2754.23188386,0.00022,2]
[380398541,1755729046578,-332.69292452,0.00022,2]
[380398542,1755729046687,-151.0,0.00016,2]
[380398543,1755729046697,-199.687516,0.00016,2]
[380398544,1755729046707,-59.2204848,0.00016,2]
[380398545,1755729046720,-140.4670312,0.00016,2]
[380398546,1755729046730,-160.31027196,0.000179,2]
[380398547,1755729046740,-131.89959611,0.0001995,2]
[380398548,1755729046751,-19.10040389,0.0001995,2]
[380398549,1755729046761,-199.687516,0.0001995,2]
[380398550,1755729046770,-199.687516,0.0001995,2]
[380398551,1755729046779,-1841.50486792,0.00022,2]
[380398552,1755729046791,-684.24180097,0.00022,2]
[380398609,1755729053472,-158.93657,0.000109,2]
[380398610,1755729072191,-9.79467236,0.000109,2]
[380398611,1755729072226,-162.53751528,0.000109,2]
[380398612,1755729093785,-70.98879142,0.000109,2]
[380398613,1755729093824,-9.02241716,0.000109,2]
[380398614,1755729100832,-288.4,0.000109,2]
[380398615,1755729109250,-229.38442935,0.000109,2]
[380398619,1755729471587,-400.0,0.000109,2]
[380398620,1755729480294,-400.0,0.000109,2]
[380398621,1755729485863,-159.86,0.000109,2]
[380398622,1755729534023,536.83,0.00024826,120]
[380398623,1755729534274,536.83,0.00027309,120]
[380398630,1755729893418,-40.14,0.000109,2]
[380398631,1755729893552,-109.25,0.0001199,2]
[380398663,1755730231500,-309.94887655,0.00013699,2]
[380398664,1755730231512,-323.30112345,0.00013699,2]
[380398665,1755730231523,-293.84926223,0.00013699,2]
[380398666,1755730231533,-2000.0,0.00014147,2]
[380398667,1755730231544,-2000.0,0.00015068,2]
[380398668,1755730231553,-1709.96,0.0001589,2]
[380398669,1755730231566,-1200.0,0.00016109,2]
[380398670,1755730231576,-500.0,0.0001611,2]
[380398671,1755730231586,-1680.0,0.00017698,2]
[380398672,1755730231595,-162.08,0.00017849,2]
[380398673,1755730231615,-1709.96,0.00018082,6]
[380398674,1755730231625,-299.0,0.0001831,2]
[380398675,1755730231635,-162.380719,0.00019178,2]
[380398676,1755730231645,-2361.68,0.00019193,2]
[380398677,1755730231655,-2751.0,0.00019294,2]
[380398678,1755730231665,-52897.37624418,0.00019317,2]
[380398679,1755730231674,-200.0,0.0001937,2]
[380398680,1755730231684,-200.0,0.00019377,2]
[380398681,1755730231694,-666.0,0.00019418,3]
[380398682,1755730231704,-1680.0,0.00019445,2]
[380398683,1755730231713,-250.0,0.00019625,2]
[380398684,1755730231723,-164.8,0.00019636,2]
[380398685,1755730231733,-164.8,0.00019651,2]
[380398686,1755730231742,-164.8,0.00019666,2]
[380398687,1755730231752,-164.8,0.0001968,2]
[380398688,1755730231762,-164.8,0.00019695,2]
[380398689,1755730231772,-164.8,0.0001971,2]
[380398690,1755730231782,-164.8,0.00019725,2]
[380398691,1755730231793,-164.8,0.00019739,2]
[380398692,1755730231803,-1000.0,0.00019751,2]
[380398693,1755730231812,-164.8,0.00019754,2]
[380398694,1755730231822,-164.8,0.00019769,2]
[380398695,1755730231831,-164.8,0.00019783,2]
[380398696,1755730231841,-164.8,0.00019798,2]
[380398697,1755730231851,-164.8,0.00019813,2]
[380398698,1755730231861,-164.8,0.00019827,2]
[380398699,1755730231870,-7079.1,0.00019834,2]
[380398700,1755730231879,-164.8,0.00019842,2]
[380398701,1755730231889,-164.8,0.00019857,2]
[380398702,1755730231899,-536.83,0.00019861,2]
[380398703,1755730231909,-176.53,0.00019863,2]
[380398704,1755730231919,-164.8,0.00019871,2]
[380398705,1755730231928,-164.8,0.00019886,2]
[380398706,1755730231938,-164.8,0.00019901,2]
[380398707,1755730231948,-164.8,0.00019915,2]
[380398708,1755730231957,-5598.48018948,0.0002,2]
[380398710,1755730231967,-633.25,0.00020187,2]
[380398711,1755730231976,-1709.96,0.00020273,10]
[380398712,1755730231986,-150.0,0.00020305,2]
[380398713,1755730231996,-76453.36,0.00020305,2]
[380398714,1755730232006,-166.4,0.00020305,2]
[380398715,1755730232016,-168.46,0.00020314,2]
[380398716,1755730232025,-500.0,0.00020579,2]
[380398717,1755730232036,-150.0,0.00020579,2]
[380398718,1755730232046,-500.0,0.00020579,2]
[380398719,1755730232056,-500.0,0.00020579,2]
[380398720,1755730232066,-150.0,0.00020579,2]
[380398721,1755730232076,-150.0,0.00020579,2]
[380398722,1755730232085,-213.18996601,0.00020579,2]
[380398724,1755730232096,-150.0,0.00020579,2]
[380398726,1755730232106,-150.0,0.00020579,2]
[380398727,1755730232116,-500.0,0.00020579,2]
[380398728,1755730232126,-150.0,0.00020579,2]
[380398729,1755730232136,-150.0,0.00020579,2]
[380398730,1755730232146,-500.0,0.00020579,2]
[380398731,1755730232156,-150.0,0.00020579,2]
[380398732,1755730232165,-500.0,0.00020579,2]
[380398733,1755730232174,-150.0,0.00020579,2]
[380398734,1755730232184,-150.0,0.00020579,2]
[380398735,1755730232194,-1500.0,0.00020636,2]
[380398736,1755730232203,-500.0,0.00020853,2]
[380398737,1755730232213,-150.0,0.00020853,2]
[380398738,1755730232222,-500.0,0.00020853,2]
[380398739,1755730232232,-500.0,0.00020853,2]
[380398740,1755730232241,-213.17614164,0.00020853,2]
[380398741,1755730232251,-150.0,0.00020853,2]
[380398742,1755730232260,-150.0,0.00020853,2]
[380398743,1755730232270,-262.27415815,0.00020853,2]
[380398744,1755730232279,-500.0,0.00020853,2]
[380398745,1755730232289,-150.0,0.00020853,2]
[380398746,1755730232299,-150.0,0.00020853,2]
[380398747,1755730232308,-500.0,0.00020853,2]
[380398748,1755730232318,-401.41204159,0.00020853,2]
[380398749,1755730232328,-150.0,0.00020853,2]
[380398750,1755730232337,-186.56,0.00021045,2]
[380398751,1755730232346,-500.0,0.00021127,2]
[380398752,1755730232355,-150.0,0.00021127,2]
[380398753,1755730232365,-500.0,0.00021127,2]
[380398754,1755730232375,-500.0,0.00021127,2]
[380398755,1755730232384,-150.0,0.00021127,2]
[380398756,1755730232394,-414.45014642,0.00021127,2]
[380398757,1755730232403,-200.0,0.00021127,2]
[380398758,1755730232413,-200.0,0.00021127,2]
[380398759,1755730232423,-150.0,0.00021127,2]
[380398760,1755730232432,-250.0,0.00021127,2]
[380398761,1755730232442,-150.0,0.00021127,2]
[380398762,1755730232451,-150.0,0.00021127,2]
[380398763,1755730232461,-150.0,0.00021127,2]
[380398764,1755730232470,-150.0,0.00021127,2]
[380398766,1755730232482,-762.51165586,0.00021333,2]
[380398768,1755730232492,-500.0,0.00021401,2]
[380398770,1755730232502,-150.0,0.00021401,2]
[380398771,1755730232511,-500.0,0.00021401,2]
[380398772,1755730232522,-500.0,0.00021401,2]
[380398773,1755730232532,-150.0,0.00021401,2]
[380398774,1755730232542,-150.0,0.00021401,2]
[380398775,1755730232552,-247.0,0.00021401,2]
[380398776,1755730232562,-150.0,0.00021401,2]
[380398777,1755730232571,-150.0,0.00021401,2]
[380398778,1755730232580,-150.0,0.00021401,2]
[380398779,1755730232589,-600.0,0.000215,7]
[380398780,1755730232598,-762.51165586,0.00021523,2]
[380398781,1755730232609,-1200.0,0.000216,7]
[380398782,1755730232619,-762.51165587,0.00021644,2]
[380398783,1755730232629,-500.0,0.00021675,2]
[380398784,1755730232639,-150.0,0.00021675,2]
[380398785,1755730232648,-500.0,0.00021675,2]
[380398786,1755730232658,-500.0,0.00021675,2]
[380398787,1755730232667,-150.0,0.00021675,2]
[380398788,1755730232677,-150.0,0.00021675,2]
[380398789,1755730232687,-150.0,0.00021675,2]
[380398790,1755730232696,-200.0,0.00021675,2]
[380398791,1755730232706,-1800.0,0.000217,7]
[380398792,1755730232715,-160.0,0.00021789,7]
[380398793,1755730232725,-2400.0,0.000218,7]
[380398794,1755730232735,-27320.97039249,0.00021822,2]
[380398795,1755730232744,-1000.0,0.00021891,2]
[380398796,1755730232753,-1973.1932,0.00021891,2]
[380398797,1755730232763,-219.28334835,0.00021899,2]
[380398798,1755730232773,-3000.0,0.000219,7]
[380398799,1755730232782,-994.33875738,0.000219,2]
[380398800,1755730232791,-7569.92047225,0.000219,2]
[380398801,1755730232801,-5000.0,0.00021918,2]
[380398802,1755730232811,-150.0,0.00021918,2]
[380398803,1755730232820,-200.0,0.00021918,2]
[380398804,1755730232830,-500.0,0.00021918,2]
[380398805,1755730232839,-1745.91,0.00021945,30]
[380398806,1755730232849,-500.0,0.00021949,2]
[380398807,1755730232858,-250.0,0.00021949,2]
[380398808,1755730232868,-450.06902607,0.00021949,2]
[380398809,1755730232878,-500.0,0.00021949,2]
[380398810,1755730232887,-250.0,0.00021949,2]
[380398811,1755730232897,-195.0,0.00021949,2]
[380398812,1755730232907,-150.0,0.00021949,2]
[380398813,1755730232916,-600.0,0.0002197,2]
[380398814,1755730232926,-500.0,0.00021973,2]
[380398815,1755730232940,-500.0,0.00021973,2]
[380398816,1755730232949,-563.46608371,0.00021973,2]
[380398817,1755730232958,-500.0,0.00021973,2]
[380398818,1755730232967,-500.0,0.00021973,2]
[380398819,1755730232977,-162.07581767,0.00021973,2]
[380398820,1755730232987,-500.0,0.00021973,2]
[380398821,1755730232996,-500.0,0.00021973,2]
[380398822,1755730233005,-500.0,0.00021973,2]
[380398823,1755730233015,-500.0,0.00021973,2]
[380398824,1755730233024,-500.0,0.00021973,2]
[380398825,1755730233034,-500.0,0.00021973,2]
[380398826,1755730233044,-500.0,0.00021973,2]
[380398827,1755730233054,-500.0,0.00021973,2]
[380398828,1755730233063,-500.0,0.00021973,2]
[380398829,1755730233072,-500.0,0.00021973,2]
[380398830,1755730233082,-30303.8768268,0.00021991,2]
[380398831,1755730233091,-262.24156705,0.00021993,2]
[380398832,1755730233101,-416.16366416,0.00021993,2]
[380398833,1755730233111,-199.86226227,0.00021993,2]
[380398834,1755730233120,-388438.8152696,0.00021994,2]
[380398835,1755730233130,-32723.50403904,0.00021999,7]
[380398836,1755730233139,-1700.65863417,0.00021999,2]
[380398837,1755730233148,-212.04014818,0.00021999,7]
[380398838,1755730233158,-458.46930693,0.00021999,7]
[380398839,1755730233167,-1000.0,0.00021999,2]
[380398840,1755730233177,-1000.0,0.00021999,2]
[380398841,1755730233186,-34302.52997119,0.00022,2]
[380398842,1755730233202,-2509.9365979,0.00022,2]
[380398843,1755730233226,-15442.37059925,0.00022,2]
[380398844,1755730233238,-81209.40982307,0.00022,2]
[380398845,1755730233249,-8182.99557086,0.00022,2]
[380398846,1755730233261,-13549.15990908,0.00022,2]
[380398847,1755730233273,-87182.5857204,0.00022,2]
[380398848,1755730233284,-749.71241844,0.00022,2]
[380398849,1755730233296,-695.5668,0.00022,2]
[380398850,1755730233308,-389.45158187,0.00022,2]
[380398851,1755730233324,-450.1012172,0.00022,2]
[380398852,1755730233340,-263.03648454,0.00022,2]
[380398857,1755730237476,-2639.72490357,0.00022,2]
[380398858,1755730237880,-1098.367783,0.00022,2]
[380398867,1755730242501,-800.0,0.00022,2]
[380398868,1755730242610,-1343.23231361,0.00022,2]
[380398936,1755730245724,-74193.14563321,0.00022,2]
[380398968,1755731431796,-569.92,0.00013699,2]
[380398970,1755731431806,-2000.0,0.00014349,2]
[380398971,1755731431816,-250.0,0.00015,2]
[380398972,1755731431829,-713.88881058,0.00015067,2]
[380398973,1755731431932,-486.11118942,0.00015067,2]